Workbook

Sheet 요약
C5: 아이템 테스트 요약
C7: 문제 발생률 | D7: =(E44+E47+E50+E53+E56)/COUNTA(E44,E47,E50,E53,E56) -> 38.36% | F7: 테스트 진행률 | G7: =(G44+G47+G50+G53+G56)/COUNTA(G44,G47,G50,G53,G56) -> 90.35% | I7: 테스트 불가율 | J7: =(I44+I47+I50+I53+I56)/COUNTA(I44,I47,I50,I53,I56) -> 9.65%
D8: 테스트대상 | E8: =(E45+E48+E51+E54+E57) -> 272 | F8: 테스트정상 | G8: =(G45+G48+G51+G54+G57) -> 130 | H8: 테스트불가 | I8: =(I45+I48+I51+I54+I57) -> 31 | J8: 버그케이스 | K8: =(K45+K48+K51+K54+K57) -> 89
D9: 미진행 | E9: =E8-G8-I8-K8 -> 22 | F9: 문제발생 | G9: =I8+K8 -> 120
C36: 테스트 관련 특이사항
C44: 장비 | D44: 문제발생율 | E44: =IF(장비!C2<>0,(장비!C4+장비!C6)/장비!C2,0) -> 66.67% | F44: 테스트진행률 | G44: =IF(장비!C2<>0,(장비!C2-장비!C5)/장비!C2,0) -> 100.00% | H44: 테스트불가율 | I44: =IF(장비!C2<>0,장비!C5/장비!C2,0) -> 0.00%
D45: 테스트대상 | E45: =장비!C2 -> 57 | F45: 테스트정상 | G45: =장비!C3 -> 19 | H45: 테스트불가 | I45: =장비!C4 -> 16 | J45: 버그케이스 | K45: =장비!C6 -> 22
C47: 소모성 | D47: 문제발생율 | E47: =IF(소모성!C2<>0,(소모성!C4+소모성!C6)/소모성!C2,0) -> 33.33% | F47: 테스트진행률 | G47: =IF(소모성!C2<>0,(소모성!C2-소모성!C5)/소모성!C2,0) -> 61.40% | H47: 테스트불가율 | I47: =IF(소모성!C2<>0,소모성!C5/소모성!C2,0) -> 38.60%
D48: 테스트대상 | E48: =소모성!C2 -> 57 | F48: 테스트정상 | G48: =소모성!C3 -> 16 | H48: 테스트불가 | I48: =소모성!C4 -> 0 | J48: 버그케이스 | K48: =소모성!C6 -> 19
C50: 재료 | D50: 문제발생율 | E50: =IF(재료!C2<>0,(재료!C4+재료!C6)/재료!C2,0) -> 39.66% | F50: 테스트진행률 | G50: =IF(재료!C2<>0,(재료!C2-재료!C5)/재료!C2,0) -> 100.00% | H50: 테스트불가율 | I50: =IF(재료!C2<>0,재료!C5/재료!C2,0) -> 0.00%
D51: 테스트대상 | E51: =재료!C2 -> 58 | F51: 테스트정상 | G51: =재료!C3 -> 35 | H51: 테스트불가 | I51: =재료!C4 -> 15 | J51: 버그케이스 | K51: =재료!C6 -> 8
C53: 유료 | D53: 문제발생율 | E53: =IF(유료!C2<>0,(유료!C4+재료!C6)/재료!C2,0) -> 13.79% | F53: 테스트진행률 | G53: =IF(유료!C2<>0,(재료!C2-재료!C5)/재료!C2,0) -> 100.00% | H53: 테스트불가율 | I53: =IF(유료!C2<>0,유료!C5/재료!C2,0) -> 0.00%
D54: 테스트대상 | E54: =유료!C2 -> 100 | F54: 테스트정상 | G54: =유료!C3 -> 60 | H54: 테스트불가 | I54: =유료!C4 -> 0 | J54: 버그케이스 | K54: =유료!C6 -> 40

Sheet 장비
B2: 전체 | C2: =SUMIFS($F$10:$F$65480,$G$10:$G$65480, "o")+SUMIFS($F$10:$F$65480,$G$10:$G$65480, "x")+SUMIFS($F$10:$F$65480,$G$10:$G$65480, "!")+SUMIFS($F$10:$F$65480,$G$10:$G$65480, "") -> 57
B3: 통과 | C3: =SUMIFS($F$10:$F$65480,$G$10:$G$65480, "o") -> 19
B4: 불가 | C4: =SUMIFS($F$10:$F$65480,$G$10:$G$65480, "!") -> 16
B5: 미진행 | C5: =SUMIFS($F$10:$F$65480,$G$10:$G$65480, "") -> 0
B6: 버그 | C6: =SUMIFS($F$10:$F$65480,$G$10:$G$65480, "x") -> 22
B8: 검증 : | C8: 2011-02-21
B9: 대분류 | C9: 중분류 | E9: 소분류 | F9: 가중치 | G9: 결과
B10: 캐릭터 | C10: 장비명 | D10: 외형 및 아이콘 정상 여부 | F10: 16 | G10: !
E11: 아이콘 모양이 정상인가
E12: 이 아이템에 맞는 아이콘인가 | G12: !
E13: 아이콘 해상도가 정상인가
E14: 아이템 장착시 외관에 문제가 없는가 | G14: o
D15: 사용 및 능력치 정상 여부 | F15: 19 | G15: o
E16: 레벨 제한 적용 여부 | G16: o
E17: 장착시 능력치 적용 여부 | G17: o
E18: 해제시 능력치 재 적용 여부 | G18: o
C19: 장비셋트명 | D19: 셋트 개수에 따른 능력치 적용 여부 | F19: 22 | G19: x
E20: 1개만 착용했을 때 능력치 적용 여부 | G20: o
E21: 2개만 착용했을 때 능력치 적용 여부 | G21: o
E22: 모두 착용했을 때 능력치 적용 여부 | G22: o
E23: 착용 해제했을 때 능력치 재 적용 여부 | G23: x

Sheet 소모성
B2: 전체 | C2: =SUMIFS($F$10:$F$65504,$G$10:$G$65504, "o")+SUMIFS($F$10:$F$65504,$G$10:$G$65504, "x")+SUMIFS($F$10:$F$65504,$G$10:$G$65504, "!")+SUMIFS($F$10:$F$65504,$G$10:$G$65504, "") -> 57
B3: 통과 | C3: =SUMIFS($F$10:$F$65504,$G$10:$G$65504, "o") -> 16
B4: 불가 | C4: =SUMIFS($F$10:$F$65504,$G$10:$G$65504, "!") -> 0
B5: 미진행 | C5: =SUMIFS($F$10:$F$65504,$G$10:$G$65504, "") -> 22
B6: 버그 | C6: =SUMIFS($F$10:$F$65504,$G$10:$G$65504, "x") -> 19
B9: 대분류 | C9: 중분류 | E9: 소분류 | F9: 가중치 | G9: 결과
B10: 종류(체/마) | C10: 아이템명 | D10: 아이템 정보 정상여부 | F10: 16 | G10: o
E11: 아이템에 대한 설명이 정상적인가 | G11: o
E12: 아이템의 성능에 대한 설명이 정상적인가 | G12: o
E13: 아이템의 아이콘이 정상적으로 적용되어 있는가 | G13: o
D14: 아이템 사용 정상여부 | F14: 19 | G14: x
E15: 아이템을 사용할 수 있는가 | G15: o
E16: 아이템을 사용하면 정상적으로 소모되는가 | G16: o
E17: 아이템에 표시된 능력이 적용되는가
E18: 아이템에 표시된 시간 동안 적용되는가 | G18: x
E19: 아이템의 효과가 종료되면 원래의 능력치로 돌아가는가 | G19: o
D20: 인벤토리 관련 사항이 정상인가 | F20: 22
E21: 아이템이 기획된 숫자대로 스택되는가
E22: 스택 숫자를 넘어서면 자동적으로 인벤토리의 다른 위치로 스택되는가
E23: 판매가능 아이템과 판매불가 아이템이 자동으로 구분되어 스택되는가
E24: 판매가능 아이템과 판매불가 아이템은 서로 섞여서 스택되지 않는가

Sheet 재료
B2: 전체 | C2: =SUMIFS($F$10:$F$65483,$G$10:$G$65483, "o")+SUMIFS($F$10:$F$65483,$G$10:$G$65483, "x")+SUMIFS($F$10:$F$65483,$G$10:$G$65483, "!")+SUMIFS($F$10:$F$65483,$G$10:$G$65483, "") -> 58
B3: 통과 | C3: =SUMIFS($F$10:$F$65483,$G$10:$G$65483, "o") -> 35
B4: 불가 | C4: =SUMIFS($F$10:$F$65483,$G$10:$G$65483, "!") -> 15
B5: 미진행 | C5: =SUMIFS($F$10:$F$65483,$G$10:$G$65483, "") -> 0
B6: 버그 | C6: =SUMIFS($F$10:$F$65483,$G$10:$G$65483, "x") -> 8
B9: 대분류 | C9: 중분류 | E9: 소분류 | F9: 가중치 | G9: 결과
B10: 재료구분 | C10: 재료명 | D10: 아이콘 및 설명 정상여부 | F10: 8 | G10: x
E11: 아이콘 모양이 정상인가 | G11: o
E12: 아이콘 해상도가 정상인가 | G12: x
E13: 아이템에 대한 설명이 정상적으로 표시되는가
D14: 아이템 스택 정상여부 | F14: 15 | G14: !
E15: 아이템이 기획된 숫자대로 스택되는가 | G15: o
E16: 스택 숫자를 넘어서면 자동적으로 인벤토리의 다른 위치로 스택되는가 | G16: o
E17: 판매가능 아이템과 판매불가 아이템이 자동으로 구분되어 스택되는가 | G17: !
E18: 판매가능 아이템과 판매불가 아이템은 서로 섞여서 스택되지 않는가 | G18: x
D19: 아이템 생산 관련 정상 여부 | F19: 15 | G19: o
E20: 관련 아이템을 생산하고 나면 정상적으로 소모되는가 | G20: o
E21: 인벤토리에 복수 칸 이상에 나뉘어 있을 경우 생산시 정상적으로 소모되는가 | G21: o
D22: 판매관련 정상 여부 | F22: 20 | G22: o
E23: NPC에게 표시된 가격대로 팔수 있는가 | G23: o
E24: 아이템을 팔았을 때 표시된 금액이 소지금에 들어오는가 | G24: o
E25: 아이템 구매가격이 NPC에게 팔수 있는 가격보다 비싼가 | G25: o

Sheet 유료
B2: 전체 | C2: =SUMIFS($F$10:$F$65505,$G$10:$G$65505, "o")+SUMIFS($F$10:$F$65505,$G$10:$G$65505, "x")+SUMIFS($F$10:$F$65505,$G$10:$G$65505, "!")+SUMIFS($F$10:$F$65505,$G$10:$G$65505, "") -> 100
B3: 통과 | C3: =SUMIFS($F$10:$F$65505,$G$10:$G$65505, "o") -> 60
B4: 불가 | C4: =SUMIFS($F$10:$F$65505,$G$10:$G$65505, "!") -> 0
B5: 미진행 | C5: =SUMIFS($F$10:$F$65505,$G$10:$G$65505, "") -> 0
B6: 버그 | C6: =SUMIFS($F$10:$F$65505,$G$10:$G$65505, "x") -> 40
B9: 대분류 | C9: 중분류 | E9: 소분류 | F9: 가중치 | G9: 결과
B10: 종류 | C10: 소모성 | D10: 아이템 정보 정상여부 | F10: 10 | G10: o
E11: 아이템에 대한 설명이 정상적인가 | G11: o
E12: 아이템의 성능에 대한 설명이 정상적인가 | G12: o
E13: 아이템의 아이콘이 정상적으로 적용되어 있는가 | G13: o
D14: 아이템 사용 정상여부 | F14: 20 | G14: x
E15: 아이템을 사용할 수 있는가 | G15: o
E16: 아이템을 사용하면 정상적으로 소모되는가 | G16: x
E17: 아이템에 표시된 능력이 적용되는가 | G17: x
E18: 아이템에 표시된 시간 동안 적용되는가 | G18: o
E19: 아이템의 효과가 종료되면 원래의 능력치로 돌아가는가 | G19: o
D20: 인벤토리 관련 사항이 정상인가 | F20: 15 | G20: o
E21: 아이템이 기획된 숫자대로 스택되는가 | G21: o
E22: 스택 숫자를 넘어서면 자동적으로 인벤토리의 다른 위치로 스택되는가 | G22: o
E23: 판매가능 아이템과 판매불가 아이템이 자동으로 구분되어 스택되는가 | G23: o
E24: 판매가능 아이템과 판매불가 아이템은 서로 섞여서 스택되지 않는가 | G24: o
C25: 장비성 | D25: 외형 및 아이콘 정상 여부 | F25: 15 | G25: o
E26: 아이콘 모양이 정상인가 | G26: o
E27: 이 아이템에 맞는 아이콘인가 | G27: o
E28: 아이콘 해상도가 정상인가 | G28: o
E29: 아이템 장착시 외관에 문제가 없는가 | G29: o
D30: 사용 및 능력치 정상 여부 | F30: 20 | G30: o
E31: 레벨 제한 적용 여부 | G31: o
E32: 장착시 능력치 적용 여부 | G32: o
E33: 해제시 능력치 재 적용 여부 | G33: o
D34: 캐시관련 정상여부 | F34: 20 | G34: x
E35: 가격이 정상적으로 설정되어 있는가 | G35: o
E36: 구매시 표시된 가격이 소지금에서 줄어드는가 | G36: x
E37: 캐시 아이템의 기간이 정상적으로 표시되는가 | G37: x
E38: 캐시 아이템의 기간이 정상적으로 적용되는가 | G38: o
